fUST/lending_fUST_20250731
["ID","MTS","AMOUNT","RATE_DAILY","PERIOD"]
[376395583,1753963856921,-460.30695093,0.00020547,2]
[376395584,1753963856930,-460.0,0.00020547,2]
[376395585,1753963856940,-460.0,0.00020547,2]
[376395586,1753963856949,-362.33050881,0.00020547,2]
[376395587,1753963856959,-460.0,0.00020547,2]
[376395588,1753963856968,-460.0,0.00020547,2]
[376395589,1753963856978,-460.0,0.00020547,2]
[376395590,1753963856987,-460.0,0.00020547,2]
[376395591,1753963856996,-460.0,0.00020547,2]
[376395592,1753963857008,-460.0,0.00020547,2]
[376395593,1753963857018,-460.0,0.00020547,2]
[376395594,1753963857029,-460.0,0.00020547,2]
[376395595,1753963857038,-460.0,0.00020547,2]
[376395596,1753963857048,-463.79140177,0.00020547,2]
[376395597,1753963857058,-460.0,0.00020547,2]
[376395598,1753963857067,-460.0,0.00020547,2]
[376395599,1753963857077,-327.81802727,0.00020547,2]
[376395600,1753963857086,-460.0,0.00020547,2]
[376395601,1753963857095,-392.7834124,0.00020547,2]
[376395602,1753963857105,-460.0,0.00020547,2]
[376395603,1753963857114,-460.0,0.00020547,2]
[376395604,1753963857124,-460.0,0.00020547,2]
[376395605,1753963857133,-460.0,0.00020547,2]
[376395606,1753963857142,-460.0,0.00020547,2]
[376395607,1753963857151,-460.0,0.00020547,2]
[376395608,1753963857161,-460.0,0.00020547,2]
[376395609,1753963857169,-460.0,0.00020547,2]
[376395610,1753963857179,-460.0,0.00020547,2]
[376395611,1753963857188,-460.0,0.00020547,2]
[376395612,1753963857198,-460.0,0.00020547,2]
[376395613,1753963857207,-460.0,0.00020547,2]
[376395614,1753963857216,-460.0,0.00020547,2]
[376395615,1753963857226,-460.0,0.00020547,2]
[376395616,1753963857235,-460.0,0.00020547,2]
[376395617,1753963857245,-460.0,0.00020547,2]
[376395618,1753963857254,-460.0,0.00020547,2]
[376395619,1753963857264,-460.0,0.00020547,2]
[376395620,1753963857275,-460.0,0.00020547,2]
[376395621,1753963857284,-460.0,0.00020547,2]
[376395622,1753963857294,-460.0,0.00020547,2]
[376395623,1753963857304,-460.0,0.00020547,2]
[376395624,1753963857314,-460.0,0.00020547,2]
[376395625,1753963857323,-460.0,0.00020547,2]
[376395626,1753963857332,-460.0,0.00020547,2]
[376395627,1753963857342,-460.0,0.00020547,2]
[376395628,1753963857350,-460.0,0.00020547,2]
[376395629,1753963857360,-460.0,0.00020547,2]
[376395630,1753963857369,-460.0,0.00020547,2]
[376395631,1753963857379,-460.0,0.00020547,2]
[376395632,1753963857388,-460.0,0.00020547,2]
[376395633,1753963857397,-460.0,0.00020547,2]
[376395634,1753963857406,-570.7,0.00020547,2]
[376395635,1753963857415,-460.0,0.00020547,2]
[376395636,1753963857425,-460.0,0.00020547,2]
[376395637,1753963857434,-460.0,0.00020547,2]
[376395638,1753963857443,-460.0,0.00020547,2]
[376395639,1753963857454,-460.0,0.00020547,2]
[376395640,1753963857464,-460.0,0.00020547,2]
[376395641,1753963857473,-460.0,0.00020547,2]
[376395642,1753963857483,-460.0,0.00020547,2]
[376395643,1753963857493,-460.0,0.00020547,2]
[376395644,1753963857504,-460.0,0.00020547,2]
[376395645,1753963857578,-584.6,0.00020547,2]
[376395646,1753963857588,-460.0,0.00020547,2]
[376395647,1753963857598,-1216.2,0.00020547,2]
[376395648,1753963857607,-460.0,0.00020547,2]
[376395649,1753963857617,-483.73,0.00020547,2]
[376395650,1753963857627,-1379.79,0.00020547,2]
[376395651,1753963857637,-460.0,0.00020547,2]
[376395652,1753963857647,-460.0,0.00020547,2]
[376395653,1753963857657,-2057.89,0.00020547,2]
[376395654,1753963857666,-1568.32,0.00020547,2]
[376395655,1753963857675,-488.12,0.00020547,2]
[376395656,1753963857685,-460.0,0.00020547,2]
[376395657,1753963857695,-460.0,0.00020547,2]
[376395658,1753963857705,-1262.54,0.00020547,2]
[376395659,1753963857714,-460.0,0.00020547,2]
[376395660,1753963857724,-460.0,0.00020547,2]
[376395661,1753963857733,-460.0,0.00020547,2]
[376395662,1753963857742,-460.0,0.00020547,2]
[376395663,1753963857752,-170.9708108,0.00020547,2]
[376395664,1753963857761,-460.0,0.00020547,2]
[376395665,1753963857771,-1116.38,0.00020547,2]
[376395666,1753963857783,-460.0,0.00020547,2]
[376395667,1753963857792,-460.0,0.00020547,2]
[376395668,1753963857801,-460.0,0.00020547,2]
[376395669,1753963857810,-460.0,0.00020547,2]
[376395670,1753963857820,-460.0,0.00020547,2]
[376395671,1753963857829,-460.0,0.00020547,2]
[376395672,1753963857838,-1791.33,0.00020547,2]
[376395673,1753963857848,-460.0,0.00020547,2]
[376395674,1753963857857,-460.0,0.00020547,2]
[376395675,1753963857867,-394.12428215,0.00020547,2]
[376395676,1753963857877,-460.0,0.00020547,2]
[376395677,1753963857887,-1267.79,0.00020547,2]
[376395678,1753963857897,-460.0,0.00020547,2]
[376395679,1753963857906,-460.0,0.00020547,2]
[376395680,1753963857916,-460.0,0.00020547,2]
[376395681,1753963857926,-460.0,0.00020547,2]
[376395682,1753963857936,-460.0,0.00020547,2]
[376395683,1753963857946,-461.47,0.00020547,2]
[376395684,1753963857955,-460.0,0.00020547,2]
[376395685,1753963857965,-549.46,0.00020547,2]
[376395686,1753963857976,-151.0,0.00020547,2]
[376395687,1753963857987,-460.0,0.00020547,2]
[376395688,1753963857996,-520.64,0.00020547,2]
[376395689,1753963858007,-460.0,0.00020547,2]
[376395690,1753963858019,-460.0,0.00020547,2]
[376395691,1753963858029,-460.0,0.00020547,2]
[376395692,1753963858039,-460.0,0.00020547,2]
[376395693,1753963858048,-460.0,0.00020547,2]
[376395694,1753963858058,-1447.46,0.00020547,2]
[376395695,1753963858068,-460.0,0.00020547,2]
[376395696,1753963858078,-1025.05,0.00020547,2]
[376395697,1753963858090,-460.0,0.00020547,2]
[376395698,1753963858100,-460.0,0.00020547,2]
[376395699,1753963858109,-460.0,0.00020547,2]
[376395700,1753963858118,-460.0,0.00020547,2]
[376395701,1753963858128,-460.0,0.00020547,2]
[376395702,1753963858137,-526.68,0.00020547,2]
[376395703,1753963858147,-460.0,0.00020547,2]
[376395704,1753963858160,-335.4,0.00020547,2]
[376395705,1753963858173,-460.0,0.00020547,2]
[376395706,1753963858182,-563.02,0.00020547,2]
[376395707,1753963858191,-5641.46,0.00020547,2]
[376395708,1753963858200,-2424.54,0.00020547,2]
[376395709,1753963858210,-460.0,0.00020547,2]
[376395710,1753963858219,-151.0,0.00020547,2]
[376395711,1753963858229,-460.0,0.00020547,2]
[376395712,1753963858238,-785.68,0.00020547,2]
[376395713,1753963858247,-945.34,0.00020547,2]
[376395714,1753963858256,-460.0,0.00020547,2]
[376395715,1753963858265,-460.0,0.00020547,2]
[376395716,1753963858274,-460.0,0.00020547,2]
[376395717,1753963858284,-460.0,0.00020547,2]
[376395718,1753963858293,-488.32,0.00020547,2]
[376395719,1753963858302,-151.0,0.00020547,2]
[376395720,1753963858311,-460.0,0.00020547,2]
[376395721,1753963858320,-500.0,0.00020548,2]
[376395722,1753963858329,-500.0,0.00020568,2]
[376395723,1753963858338,-1680.0,0.000206,2]
[376395724,1753963858347,-2105.41764886,0.00020601,2]
[376395725,1753963858356,-1432.26644296,0.00020656,2]
[376395726,1753963858366,-2000.0,0.00020716,2]
[376395727,1753963858375,-2008.11239632,0.00020716,2]
[376395728,1753963858384,-3452.22951613,0.00020721,2]
[376395729,1753963858393,-686.82676673,0.00020728,3]
[376395730,1753963858403,-420.0,0.00020781,2]
[376395731,1753963858412,-968.99856048,0.00020789,2]
[376395732,1753963858421,-224.46988848,0.0002081,2]
[376395733,1753963858430,-1000.0,0.00020816,2]
[376395734,1753963858439,-460.0,0.00020821,2]
[376395735,1753963858448,-460.0,0.00020821,2]
[376395736,1753963858456,-159.41753546,0.00020821,2]
[376395737,1753963858465,-460.0,0.00020821,2]
[376395738,1753963858474,-460.0,0.00020821,2]
[376395739,1753963858483,-460.0,0.00020821,2]
[376395740,1753963858492,-460.0,0.00020821,2]
[376395741,1753963858501,-460.0,0.00020821,2]
[376395742,1753963858510,-460.0,0.00020821,2]
[376395743,1753963858520,-460.0,0.00020821,2]
[376395744,1753963858529,-460.0,0.00020821,2]
[376395745,1753963858538,-460.0,0.00020821,2]
[376395746,1753963858547,-460.0,0.00020821,2]
[376395747,1753963858557,-460.0,0.00020821,2]
[376395748,1753963858570,-460.0,0.00020821,2]
[376395749,1753963858586,-460.0,0.00020821,2]
[376395750,1753963858596,-468.34864337,0.00020821,2]
[376395751,1753963858605,-460.0,0.00020821,2]
[376395752,1753963858616,-460.0,0.00020821,2]
[376395753,1753963858626,-460.0,0.00020821,2]
[376395754,1753963858636,-460.0,0.00020821,2]
[376395755,1753963858645,-460.0,0.00020821,2]
[376395756,1753963858654,-460.0,0.00020821,2]
[376395757,1753963858664,-460.0,0.00020821,2]
[376395758,1753963858736,-460.0,0.00020821,2]
[376395759,1753963858746,-460.0,0.00020821,2]
[376395760,1753963858756,-460.0,0.00020821,2]
[376395761,1753963858765,-460.0,0.00020821,2]
[376395762,1753963858775,-460.0,0.00020821,2]
[376395763,1753963858785,-494.150915,0.00020821,2]
[376395764,1753963858794,-460.0,0.00020821,2]
[376395765,1753963858804,-460.0,0.00020821,2]
[376395766,1753963858814,-460.0,0.00020821,2]
[376395767,1753963858823,-460.0,0.00020821,2]
[376395768,1753963858832,-460.0,0.00020821,2]
[376395769,1753963858842,-460.0,0.00020821,2]
[376395770,1753963858852,-460.0,0.00020821,2]
[376395771,1753963858861,-460.0,0.00020821,2]
[376395772,1753963858871,-460.0,0.00020821,2]
[376395773,1753963858880,-460.0,0.00020821,2]
[376395774,1753963858890,-460.0,0.00020821,2]
[376395775,1753963858900,-460.0,0.00020821,2]
[376395776,1753963858909,-460.0,0.00020821,2]
[376395777,1753963858919,-460.0,0.00020821,2]
[376395778,1753963858928,-460.0,0.00020821,2]
[376395779,1753963858937,-570.7,0.00020821,2]
[376395780,1753963858947,-460.0,0.00020821,2]
[376395781,1753963858956,-460.0,0.00020821,2]
[376395782,1753963858965,-460.0,0.00020821,2]
[376395783,1753963858975,-460.0,0.00020821,2]
[376395784,1753963858984,-460.0,0.00020821,2]
[376395785,1753963858994,-460.0,0.00020821,2]
[376395786,1753963859003,-460.0,0.00020821,2]
[376395787,1753963859019,-460.0,0.00020821,2]
[376395788,1753963859028,-460.0,0.00020821,2]
[376395789,1753963859038,-584.6,0.00020821,2]
[376395790,1753963859047,-460.0,0.00020821,2]
[376395791,1753963859057,-1216.2,0.00020821,2]
[376395792,1753963859068,-483.73,0.00020821,2]
[376395793,1753963859077,-1379.79,0.00020821,2]
[376395794,1753963859088,-282.34658908,0.00020821,2]
[376395795,1753963859098,-2057.89,0.00020821,2]
[376395796,1753963859107,-1568.32,0.00020821,2]
[376395797,1753963859116,-488.12,0.00020821,2]
[376395798,1753963859126,-460.0,0.00020821,2]
[376395799,1753963859135,-460.0,0.00020821,2]
[376395800,1753963859144,-1262.54,0.00020821,2]
[376395801,1753963859154,-460.0,0.00020821,2]
[376395802,1753963859164,-460.0,0.00020821,2]
[376395803,1753963859173,-460.0,0.00020821,2]
[376395804,1753963859183,-390.96,0.00020821,2]
[376395805,1753963859193,-1116.38,0.00020821,2]
[376395806,1753963859202,-460.0,0.00020821,2]
[376395807,1753963859211,-460.0,0.00020821,2]
[376395808,1753963859220,-460.0,0.00020821,2]
[376395809,1753963859229,-460.0,0.00020821,2]
[376395810,1753963859239,-460.0,0.00020821,2]
[376395811,1753963859260,-460.0,0.00020821,2]
[376395812,1753963859276,-1791.33,0.00020821,2]
[376395813,1753963859295,-460.0,0.00020821,2]
[376395814,1753963859315,-460.0,0.00020821,2]
[376395815,1753963859335,-460.0,0.00020821,2]
[376395816,1753963859352,-1267.79,0.00020821,2]
[376395817,1753963859371,-460.0,0.00020821,2]
[376395818,1753963859385,-460.0,0.00020821,2]
[376395819,1753963859402,-337.09243243,0.00020821,2]
[376395820,1753963859422,-460.0,0.00020821,2]
[376395821,1753963859439,-460.0,0.00020821,2]
[376395822,1753963859454,-461.47,0.00020821,2]
[376395823,1753963859469,-460.0,0.00020821,2]
[376395824,1753963859487,-177.53773189,0.00020821,2]
[376395825,1753963859502,-520.64,0.00020821,2]
[376395826,1753963859517,-543.51,0.00020821,2]
[376395827,1753963859531,-460.0,0.00020821,2]
[376395828,1753963859546,-460.0,0.00020821,2]
[376395829,1753963859560,-460.0,0.00020821,2]
[376395830,1753963859574,-460.0,0.00020821,2]
[376395831,1753963859589,-1447.46,0.00020821,2]
[376395832,1753963859604,-460.0,0.00020821,2]
[376395833,1753963859619,-1025.05,0.00020821,2]
[376395834,1753963859633,-460.0,0.00020821,2]
[376395835,1753963859648,-460.0,0.00020821,2]
[376395836,1753963859661,-460.0,0.00020821,2]
[376395837,1753963859677,-460.0,0.00020821,2]
[376395838,1753963859693,-526.68,0.00020821,2]
[376395839,1753963859706,-353.0,0.00020821,2]
[376395840,1753963859720,-460.0,0.00020821,2]
[376395841,1753963859734,-5641.46,0.00020821,2]
[376395842,1753963859748,-460.0,0.00020821,2]
[376395843,1753963859762,-2424.54,0.00020821,2]
[376395844,1753963859777,-785.68,0.00020821,2]
[376395845,1753963859791,-945.34,0.00020821,2]
[376395846,1753963859806,-186.56207954,0.00020821,2]
[376395847,1753963859820,-460.0,0.00020821,2]
[376395848,1753963859834,-460.0,0.00020821,2]
[376395849,1753963859848,-450.0,0.00020822,2]
[376395850,1753963859868,-2106.44570803,0.00020849,2]
[376395851,1753963859882,-480.0,0.0002088,2]
[376395852,1753963859897,-686.82676673,0.00020934,4]
[376395853,1753963859912,-2000.0,0.0002098,2]
[376395854,1753963859927,-360.0,0.00020989,2]
[376395855,1753963859941,-5000.0,0.0002099,2]
[376395856,1753963859955,-9051.81745437,0.00021,2]
[376395857,1753963859969,-202.45093053,0.00021,2]
[376395858,1753963859983,-1500.0,0.00021068,2]
[376395859,1753963859996,-155.0,0.00021095,2]
[376395860,1753963860014,-155.0,0.00021095,2]
[376395861,1753963860028,-460.0,0.00021095,2]
[376395862,1753963860134,-460.0,0.00021095,2]
[376395863,1753963860147,-460.0,0.00021095,2]
[376395864,1753963860156,-466.92204182,0.00021095,2]
[376395865,1753963860165,-460.0,0.00021095,2]
[376395866,1753963860175,-345.45235253,0.00021095,2]
[376395867,1753963860186,-460.0,0.00021095,2]
[376395868,1753963860195,-460.0,0.00021095,2]
[376395869,1753963860205,-460.0,0.00021095,2]
[376395870,1753963860215,-460.0,0.00021095,2]
[376395871,1753963860224,-460.0,0.00021095,2]
[376395872,1753963860234,-432.64427764,0.00021095,2]
[376395873,1753963860243,-460.0,0.00021095,2]
[376395874,1753963860253,-460.0,0.00021095,2]
[376395875,1753963860262,-460.0,0.00021095,2]
[376395876,1753963860271,-460.0,0.00021095,2]
[376395877,1753963860282,-460.0,0.00021095,2]
[376395878,1753963860291,-460.0,0.00021095,2]
[376395879,1753963860301,-460.0,0.00021095,2]
[376395880,1753963860310,-398.25,0.00021095,2]
[376395881,1753963860320,-460.0,0.00021095,2]
[376395882,1753963860329,-460.0,0.00021095,2]
[376395883,1753963860339,-460.0,0.00021095,2]
[376395884,1753963860348,-417.2,0.00021095,2]
[376395885,1753963860357,-460.0,0.00021095,2]
[376395886,1753963860366,-460.0,0.00021095,2]
[376395887,1753963860375,-460.0,0.00021095,2]
[376395888,1753963860384,-570.7,0.00021095,2]
[376395889,1753963860394,-460.0,0.00021095,2]
[376395890,1753963860403,-460.0,0.00021095,2]
[376395891,1753963860413,-460.0,0.00021095,2]
[376395892,1753963860423,-205.9682415,0.00021095,2]
[376395893,1753963860433,-151.0,0.00021095,2]
[376395894,1753963860443,-460.0,0.00021095,2]
[376395895,1753963860452,-460.0,0.00021095,2]
[376395896,1753963860462,-281.18991007,0.00021095,2]
[376395897,1753963860471,-460.0,0.00021095,2]
[376395898,1753963860480,-460.0,0.00021095,2]
[376395899,1753963860490,-151.0,0.00021095,2]
[376395900,1753963860500,-584.6,0.00021095,2]
[376395901,1753963860509,-154.062904,0.00021095,2]
[376395902,1753963860518,-460.0,0.00021095,2]
[376395903,1753963860529,-1216.2,0.00021095,2]
[376395904,1753963860539,-483.73,0.00021095,2]
[376395905,1753963860549,-1379.79,0.00021095,2]
[376395906,1753963860558,-2057.89,0.00021095,2]
[376395907,1753963860568,-1568.32,0.00021095,2]
[376395908,1753963860577,-488.12,0.00021095,2]
[376395909,1753963860587,-151.0,0.00021095,2]
[376395910,1753963860596,-460.0,0.00021095,2]
[376395911,1753963860606,-460.0,0.00021095,2]
[376395912,1753963860616,-1262.54,0.00021095,2]
[376395913,1753963860626,-477.52,0.00021095,2]
[376395914,1753963860636,-460.0,0.00021095,2]
[376395915,1753963860645,-521.61747541,0.00021095,2]
[376395916,1753963860655,-1116.38,0.00021095,2]
[376395917,1753963860665,-460.0,0.00021095,2]
[376395918,1753963860674,-460.0,0.00021095,2]
[376395919,1753963860684,-460.0,0.00021095,2]
[376395920,1753963860693,-460.0,0.00021095,2]
[376395921,1753963860702,-460.0,0.00021095,2]
[376395922,1753963860712,-1791.33,0.00021095,2]
[376395923,1753963860721,-460.0,0.00021095,2]
[376395924,1753963860731,-460.0,0.00021095,2]
[376395925,1753963860740,-394.92,0.00021095,2]
[376395926,1753963860749,-1267.79,0.00021095,2]
[376395927,1753963860758,-460.0,0.00021095,2]
[376395928,1753963860768,-460.0,0.00021095,2]
[376395929,1753963860778,-460.0,0.00021095,2]
[376395930,1753963860788,-460.0,0.00021095,2]
[376395931,1753963860797,-461.47,0.00021095,2]
[376395932,1753963860807,-520.64,0.00021095,2]
[376395933,1753963860816,-460.0,0.00021095,2]
[376395934,1753963860825,-235.201776,0.00021095,2]
[376395935,1753963860834,-235.201776,0.00021095,2]
[376395936,1753963860844,-460.0,0.00021095,2]
[376395937,1753963860853,-460.0,0.00021095,2]
[376395938,1753963860862,-460.0,0.00021095,2]
[376395939,1753963860872,-1447.46,0.00021095,2]
[376395940,1753963860881,-460.0,0.00021095,2]
[376395941,1753963860891,-1025.05,0.00021095,2]
[376395942,1753963860901,-460.0,0.00021095,2]
[376395943,1753963860911,-460.0,0.00021095,2]
[376395944,1753963860921,-542.68,0.00021095,2]
[376395945,1753963860930,-460.0,0.00021095,2]
[376395946,1753963860940,-526.68,0.00021095,2]
[376395947,1753963860949,-460.0,0.00021095,2]
[376395948,1753963860958,-151.0,0.00021095,2]
[376395949,1753963860968,-5641.46,0.00021095,2]
[376395950,1753963860978,-460.0,0.00021095,2]
[376395951,1753963860988,-2424.54,0.00021095,2]
[376395952,1753963860998,-785.68,0.00021095,2]
[376395953,1753963861008,-945.34,0.00021095,2]
[376395954,1753963861022,-686.82676673,0.00021141,4]
[376395955,1753963861033,-200.0,0.00021181,15]
[376395956,1753963861043,-200.0,0.00021181,15]
[376395957,1753963861054,-200.0,0.00021181,15]
[376395958,1753963861064,-200.0,0.00021181,15]
[376395959,1753963861074,-320.0,0.00021181,15]
[376395960,1753963861083,-2500.0,0.00021264,2]
[376395961,1753963861092,-2000.0,0.0002128,2]
[376395962,1753963861103,-686.82676673,0.00021348,5]
[376395963,1753963861114,-151.0,0.00021369,2]
[376395964,1753963861122,-460.0,0.00021369,2]
[376395965,1753963861134,-151.0,0.00021369,2]
[376395966,1753963861143,-288.913211,0.00021369,2]
[376395967,1753963861153,-1310.07259,0.00021369,2]
[376395968,1753963861165,-1310.07259,0.00021369,2]
[376395969,1753963861174,-460.0,0.00021369,2]
[376395970,1753963861183,-460.0,0.00021369,2]
[376395971,1753963861193,-460.0,0.00021369,2]
[376395972,1753963861202,-460.0,0.00021369,2]
[376395973,1753963861213,-460.0,0.00021369,2]
[376395974,1753963861231,-151.0,0.00021369,2]
[376395975,1753963861241,-460.0,0.00021369,2]
[376395976,1753963861250,-512.46,0.00021369,2]
[376395977,1753963861261,-151.0,0.00021369,2]
[376395978,1753963861332,-460.0,0.00021369,2]
[376395979,1753963861342,-460.0,0.00021369,2]
[376395980,1753963861352,-460.0,0.00021369,2]
[376395981,1753963861361,-460.0,0.00021369,2]
[376395982,1753963861371,-460.0,0.00021369,2]
[376395983,1753963861381,-460.0,0.00021369,2]
[376395984,1753963861390,-151.0,0.00021369,2]
[376395985,1753963861400,-151.0,0.00021369,2]
[376395986,1753963861409,-460.0,0.00021369,2]
[376395987,1753963861418,-531.2,0.00021369,2]
[376395988,1753963861428,-460.0,0.00021369,2]
[376395989,1753963861437,-460.0,0.00021369,2]
[376395990,1753963861447,-460.0,0.00021369,2]
[376395991,1753963861456,-570.7,0.00021369,2]
[376395992,1753963861465,-460.0,0.00021369,2]
[376395993,1753963861475,-151.0,0.00021369,2]
[376395994,1753963861484,-180.38630645,0.00021369,2]
[376395995,1753963861493,-460.0,0.00021369,2]
[376395996,1753963861502,-361.05,0.00021369,2]
[376395997,1753963861512,-244.656716,0.00021369,2]
[376395998,1753963861521,-244.656716,0.00021369,2]
[376395999,1753963861532,-584.6,0.00021369,2]
[376396000,1753963861541,-460.0,0.00021369,2]
[376396001,1753963861551,-1216.2,0.00021369,2]
[376396002,1753963861561,-483.73,0.00021369,2]
[376396003,1753963861571,-1379.79,0.00021369,2]
[376396004,1753963861580,-2057.89,0.00021369,2]
[376396005,1753963861590,-1568.32,0.00021369,2]
[376396006,1753963861599,-488.12,0.00021369,2]
[376396007,1753963861609,-151.0,0.00021369,2]
[376396008,1753963861618,-460.0,0.00021369,2]
[376396009,1753963861628,-1262.54,0.00021369,2]
[376396010,1753963861637,-1116.38,0.00021369,2]
[376396011,1753963861646,-460.0,0.00021369,2]
[376396012,1753963861656,-460.0,0.00021369,2]
[376396013,1753963861666,-460.0,0.00021369,2]
[376396014,1753963861675,-460.0,0.00021369,2]
[376396015,1753963861688,-460.0,0.00021369,2]
[376396016,1753963861698,-1791.33,0.00021369,2]
[376396017,1753963861707,-460.0,0.00021369,2]
[376396018,1753963861716,-460.0,0.00021369,2]
[376396019,1753963861726,-1267.79,0.00021369,2]
[376396020,1753963861735,-460.0,0.00021369,2]
[376396021,1753963861745,-460.0,0.00021369,2]
[376396022,1753963861754,-460.0,0.00021369,2]
[376396023,1753963861764,-460.0,0.00021369,2]
[376396024,1753963861774,-461.47,0.00021369,2]
[376396025,1753963861785,-520.64,0.00021369,2]
[376396026,1753963861796,-460.0,0.00021369,2]
[376396027,1753963861805,-460.0,0.00021369,2]
[376396028,1753963861815,-460.0,0.00021369,2]
[376396029,1753963861825,-1447.46,0.00021369,2]
[376396030,1753963861834,-460.0,0.00021369,2]
[376396031,1753963861844,-1025.05,0.00021369,2]
[376396032,1753963861854,-460.0,0.00021369,2]
[376396033,1753963861863,-460.0,0.00021369,2]
[376396034,1753963861873,-460.0,0.00021369,2]
[376396035,1753963861883,-526.68,0.00021369,2]
[376396036,1753963861892,-457.71,0.00021369,2]
[376396037,1753963861901,-5641.46,0.00021369,2]
[376396038,1753963861911,-460.0,0.00021369,2]
[376396039,1753963861920,-2424.54,0.00021369,2]
[376396040,1753963861930,-785.68,0.00021369,2]
[376396041,1753963861940,-945.34,0.00021369,2]
[376396042,1753963861950,-300.0,0.0002137,2]
[376396043,1753963861959,-149821.3,0.000215,2]
[376396044,1753963861969,-7562.11,0.000215,2]
[376396045,1753963861978,-10000.0,0.000215,2]
[376396046,1753963861988,-10000.0,0.000215,2]
[376396047,1753963861997,-10000.0,0.000215,2]
[376396048,1753963862007,-10000.0,0.000215,2]
[376396049,1753963862020,-9554.0,0.000215,2]
[376396050,1753963862030,-20000.0,0.000215,2]
[376396051,1753963862041,-999.49231525,0.000215,2]
[376396052,1753963862050,-10000.0,0.000215,2]
[376396053,1753963862060,-30000.0,0.000215,2]
[376396054,1753963862069,-151.0,0.000215,2]
[376396055,1753963862079,-151.0,0.000215,2]
[376396056,1753963862088,-151.0,0.000215,2]
[376396057,1753963862098,-151.0,0.000215,2]
[376396058,1753963862107,-151.0,0.000215,2]
[376396059,1753963862117,-151.0,0.000215,2]
[376396060,1753963862126,-10000.0,0.000215,2]
[376396061,1753963862136,-151.0,0.000215,2]
[376396062,1753963862145,-151.0,0.000215,2]
[376396063,1753963862154,-151.0,0.000215,2]
[376396064,1753963862163,-151.0,0.000215,2]
[376396065,1753963862172,-151.0,0.000215,2]
[376396066,1753963862182,-151.0,0.000215,2]
[376396067,1753963862192,-151.0,0.000215,2]
[376396068,1753963862201,-152.488091,0.000215,2]
[376396069,1753963862210,-151.0,0.000215,2]
[376396070,1753963862220,-154.086202,0.000215,2]
[376396071,1753963862231,-151.0,0.000215,2]
[376396072,1753963862240,-151.0,0.000215,2]
[376396073,1753963862251,-151.0,0.000215,2]
[376396074,1753963862265,-10000.0,0.000215,2]
[376396075,1753963862274,-229.307814,0.000215,2]
[376396076,1753963862283,-824.977997,0.000215,2]
[376396077,1753963862293,-229.307814,0.000215,2]
[376396078,1753963862302,-70000.0,0.000215,2]
[376396079,1753963862312,-151.0,0.000215,2]
[376396080,1753963862321,-151.0,0.000215,2]
[376396081,1753963862330,-151.0,0.000215,2]
[376396082,1753963862340,-151.0,0.000215,2]